bitfinex/quotes_BTCUSD_20250527
["timestamp","ask_amount","ask_price","bid_price","bid_amount"]
[1748370631642,0.0434694,110010.0,110000.0,0.82089109]
[1748370632510,0.0525594,110010.0,110000.0,0.82089109]
[1748370633141,0.0434694,110010.0,110000.0,0.82089109]
[1748370634253,0.0434694,110010.0,110000.0,0.22067321]
[1748370634475,0.0592694,110010.0,110000.0,0.22067321]
[1748370634690,0.0592694,110010.0,110000.0,0.82089109]
[1748370634901,0.0434694,110010.0,110000.0,0.82089109]
[1748370635972,0.01817908,110010.0,110000.0,0.82089109]
[1748370636174,0.02726891,110010.0,110000.0,0.82089109]
[1748370636390,0.03635882,110010.0,110000.0,0.22067321]
[1748370636597,0.03635882,110010.0,110000.0,0.82089109]
[1748370637430,0.02726891,110010.0,110000.0,0.82089109]
[1748370638126,0.01817908,110010.0,110000.0,0.82089109]
[1748370639001,0.24025246,110020.0,110010.0,0.19089156]
[1748370639216,0.23116354,110020.0,110010.0,0.19089156]
[1748370639930,0.22207437,110020.0,110010.0,0.19089173]
[1748370642540,0.21298512,110020.0,110010.0,0.19089173]
[1748370643354,0.21298512,110020.0,110010.0,0.00909008]
[1748370643572,0.21298512,110020.0,110010.0,0.19316401]
[1748370643782,0.21298512,110020.0,110010.0,0.19998164]
[1748370644214,0.21298512,110020.0,110010.0,0.20907139]
[1748370644425,0.21298512,110020.0,110010.0,0.19998164]
[1748370644669,0.24025204,110020.0,110010.0,0.21816105]
[1748370644875,0.22525196,110020.0,110010.0,0.22725063]
[1748370645072,0.22525196,110020.0,110010.0,0.81837893]
[1748370645683,0.23126329,110020.0,110010.0,0.80928927]
[1748370646502,0.23126329,110020.0,110010.0,0.20907139]
[1748370646709,0.23126329,110020.0,110010.0,0.21816105]
[1748370647117,0.0337,110030.0,110010.0,0.80680903]
[1748370647359,0.01108768,110030.0,110020.0,0.81154171]
[1748370647491,0.002,110030.0,110020.0,0.84126976]
[1748370647693,0.002,110030.0,110020.0,0.93232371]
[1748370647895,0.002,110030.0,110020.0,0.90032371]
[1748370648598,0.002,110030.0,110020.0,0.91602371]
[1748370648812,0.002,110030.0,110020.0,0.91702371]
[1748370650294,0.002,110030.0,110020.0,0.93332371]
[1748370650932,0.002,110030.0,110020.0,0.93432371]
[1748370651194,0.002,110030.0,110020.0,0.94360343]
[1748370656208,0.002,110030.0,110020.0,0.97086143]
[1748370658095,0.002,110030.0,110020.0,0.96158171]
[1748370659356,0.002,110030.0,110020.0,4.09979179]
[1748370659575,0.002,110030.0,110020.0,7.10995867]
[1748370659808,0.002,110030.0,110020.0,4.04186879]
[1748370660022,0.002,110030.0,110020.0,4.30242577]
[1748370660234,0.002,110030.0,110020.0,3.97249677]
[1748370660462,0.002,110030.0,110020.0,4.15218777]
[1748370660676,0.002,110030.0,110020.0,3.99157577]
[1748370660886,0.002,110030.0,110020.0,2.75979651]
[1748370661521,0.002,110030.0,110020.0,3.20859085]
[1748370661774,0.002,110030.0,110020.0,2.75879651]
[1748370661981,0.002,110030.0,110020.0,2.76179651]
[1748370662183,0.002,110030.0,110020.0,2.46201514]
[1748370664135,0.002,110030.0,110020.0,2.49530229]
[1748370664797,0.002,110030.0,110020.0,2.19600229]
[1748370665215,0.002,110030.0,110020.0,2.17271514]
[1748370665424,0.002,110030.0,110020.0,1.57290783]
[1748370665642,0.002,110030.0,110020.0,2.17271514]
[1748370667603,0.002,110030.0,110020.0,2.17263514]
[1748370668243,0.002,110030.0,110020.0,2.18649975]
[1748370668980,0.05177561,110030.0,110020.0,0.72539707]
[1748370669208,0.0336,110030.0,110020.0,1.02591314]
[1748370669885,0.0336,110030.0,110020.0,0.42610583]
[1748370670117,0.04268768,110030.0,110020.0,1.02591314]
[1748370670343,0.0336,110030.0,110020.0,0.90591314]
[1748370671233,0.04268768,110030.0,110020.0,0.90591314]
[1748370671543,0.04268768,110030.0,110020.0,1.26161314]
[1748370671544,0.002,110030.0,110020.0,1.26161314]
[1748370671804,0.002,110030.0,110020.0,1.24591314]
[1748370673624,0.002,110030.0,110020.0,1.53647314]
[1748370673896,0.002,110030.0,110020.0,1.57767314]
[1748370674138,0.017,110050.0,110040.0,1.40862852]
[1748370674139,0.0178,110050.0,110040.0,1.40862852]
[1748370674362,0.0178,110050.0,110040.0,1.09934121]
[1748370674579,0.0332,110050.0,110040.0,1.19039516]
[1748370675263,0.0178,110050.0,110040.0,1.79020247]
[1748370675499,0.002,110050.0,110040.0,1.80729628]
[1748370676874,0.002,110050.0,110040.0,0.60868166]
[1748370677091,0.05227281,110050.0,110040.0,0.88419476]
[1748370677300,0.24309499,110050.0,110040.0,0.89328228]
[1748370677518,0.06135942,110050.0,110040.0,0.82040295]
[1748370677728,0.06135875,110050.0,110040.0,1.16948997]
[1748370677981,0.05227231,110050.0,110040.0,1.16948997]
[1748370678200,0.04318603,110050.0,110040.0,1.16948997]
[1748370678423,0.0341,110050.0,110040.0,1.16948997]
[1748370678640,0.0179,110050.0,110040.0,1.26054392]
[1748370679323,0.002,110050.0,110040.0,1.86035123]
[1748370679540,0.002,110050.0,110040.0,2.38154051]
[1748370679999,0.002,110050.0,110040.0,1.61794292]
[1748370680214,0.0179,110050.0,110040.0,1.26054392]
[1748370680427,0.0179,110050.0,110040.0,1.45118892]
[1748370680639,0.0179,110050.0,110040.0,1.26054392]
[1748370681283,0.0179,110050.0,110040.0,1.59221192]
[1748370681484,0.0179,110050.0,110040.0,1.45067192]
[1748370682107,0.0179,110050.0,110040.0,1.25260505]
[1748370682316,0.0179,110050.0,110040.0,1.43435714]
[1748370682523,0.002,110050.0,110040.0,1.44344474]
[1748370682946,0.002,110050.0,110040.0,1.39008374]
[1748370683801,0.0179,110050.0,110040.0,1.39008374]
[1748370686556,0.002,110050.0,110040.0,1.39008374]
[1748370687481,0.002,110050.0,110040.0,1.68092374]
[1748370687891,0.002,110050.0,110040.0,1.91092374]
[1748370689317,0.002,110050.0,110040.0,2.52673105]
[1748370689536,0.002,110050.0,110040.0,2.55398305]
[1748370689973,0.002,110050.0,110040.0,2.56948305]
[1748370690385,0.002,110050.0,110040.0,2.55398305]
[1748370690615,0.23400854,110050.0,110040.0,0.23]
[1748370690834,0.23400854,110050.0,110030.0,0.54903093]
[1748370690835,0.18175209,110040.0,110030.0,0.54903093]
[1748370691049,0.05936139,110040.0,110030.0,0.56725614]
[1748370691328,0.05936139,110040.0,110030.0,0.31831009]
[1748370691559,0.05936139,110040.0,110030.0,0.9181174]
[1748370691795,0.05936131,110040.0,110030.0,1.2581174]
[1748370692026,0.05027388,110040.0,110030.0,1.2581174]
[1748370692255,0.05936107,110040.0,110030.0,1.2581174]
[1748370692482,0.05936107,110040.0,110030.0,1.2621174]
[1748370694319,0.05027388,110040.0,110030.0,1.2621174]
[1748370695210,0.19282218,110050.0,110040.0,1.5415759]
[1748370695211,0.002,110050.0,110040.0,1.5415759]
[1748370695458,0.002,110050.0,110040.0,2.13554621]
[1748370695678,0.002,110050.0,110040.0,2.24385047]
[1748370695900,0.002,110050.0,110040.0,2.27110147]
[1748370696337,0.002,110050.0,110040.0,3.01091247]
[1748370696549,0.002,110050.0,110040.0,3.01291247]
[1748370696780,0.002,110050.0,110040.0,2.90917247]
[1748370696995,0.002,110050.0,110040.0,2.89337247]
[1748370697198,0.002,110050.0,110040.0,2.89437247]
[1748370697412,0.002,110050.0,110040.0,3.05495747]
[1748370697620,0.002,110050.0,110040.0,2.93023547]
[1748370698114,0.002,110050.0,110040.0,2.94673547]
[1748370698326,0.002,110050.0,110040.0,2.87075366]
[1748370698535,0.002,110050.0,110040.0,3.86519366]
[1748370698760,0.002,110050.0,110040.0,3.80249266]
[1748370699229,0.002,110050.0,110040.0,3.61045947]
[1748370699455,0.002,110050.0,110040.0,3.38029047]
[1748370699676,0.002,110050.0,110040.0,2.95790947]
[1748370700444,0.002,110050.0,110040.0,3.63401347]
[1748370701122,0.002,110050.0,110040.0,3.71425432]
[1748370701546,0.002,110050.0,110040.0,6.50063532]
[1748370701764,0.002,110050.0,110040.0,6.24794832]
[1748370702035,0.002,110050.0,110040.0,5.94864832]
[1748370702249,0.002,110050.0,110040.0,5.77580032]
[1748370702458,0.002,110050.0,110040.0,5.99381432]
[1748370702677,0.002,110050.0,110040.0,5.73900332]
[1748370703325,0.002,110050.0,110040.0,5.59472432]
[1748370703534,0.002,110050.0,110040.0,5.79160132]
[1748370703748,0.002,110050.0,110040.0,5.73713732]
[1748370704179,0.002,110050.0,110040.0,5.57443532]
[1748370704384,0.002,110050.0,110040.0,5.44852832]
[1748370704596,0.002,110050.0,110040.0,5.48707932]
[1748370704807,0.002,110050.0,110040.0,5.33223032]
[1748370705445,0.002,110050.0,110040.0,5.56223032]
[1748370705653,0.002,110050.0,110040.0,5.82807332]
[1748370705873,0.002,110050.0,110040.0,5.70919432]
[1748370706088,0.002,110050.0,110040.0,5.61393032]
[1748370706513,0.002,110050.0,110040.0,5.87090032]
[1748370706728,0.002,110050.0,110040.0,5.68997732]
[1748370707586,0.002,110050.0,110040.0,5.95002132]
[1748370707793,0.002,110050.0,110040.0,5.76363332]
[1748370708356,0.002,110050.0,110040.0,4.03379332]
[1748370708530,0.002,110050.0,110040.0,4.22730932]
[1748370708741,0.002,110050.0,110040.0,4.12937432]
[1748370708940,0.002,110050.0,110040.0,4.08044332]
[1748370709575,0.002,110050.0,110040.0,2.44725432]
[1748370709780,0.002,110050.0,110040.0,4.21845232]
[1748370710206,0.002,110050.0,110040.0,3.75277532]
[1748370710439,0.002,110050.0,110040.0,2.3620287]
[1748370710641,0.002,110050.0,110040.0,3.84348832]
[1748370710849,0.002,110050.0,110040.0,2.40491432]
[1748370711255,0.002,110050.0,110040.0,3.81338832]
[1748370711863,0.002,110050.0,110040.0,3.93264732]
[1748370712064,0.002,110050.0,110040.0,4.23194732]
[1748370712299,0.002,110050.0,110040.0,4.23195732]
[1748370712508,0.002,110050.0,110040.0,4.75252032]
[1748370712725,0.002,110050.0,110040.0,4.46140332]
[1748370712928,0.002,110050.0,110040.0,4.46387032]
[1748370713131,0.002,110050.0,110040.0,4.45387032]
[1748370713336,0.002,110050.0,110040.0,4.13193932]
[1748370713544,0.002,110050.0,110040.0,4.23595432]
[1748370713753,0.002,110050.0,110040.0,4.23597432]
[1748370713966,0.002,110050.0,110040.0,4.20192632]
[1748370714172,0.002,110050.0,110040.0,4.46279432]
[1748370714381,0.002,110050.0,110040.0,4.44825147]
[1748370714591,0.002,110050.0,110040.0,3.98768447]
[1748370714973,0.002,110050.0,110040.0,3.89942347]
[1748370715416,0.002,110050.0,110040.0,3.99054647]
[1748370716459,0.002,110050.0,110040.0,2.68967347]
[1748370716668,0.002,110050.0,110040.0,4.85803147]
[1748370717086,0.002,110050.0,110040.0,3.93297347]
[1748370717706,0.002,110050.0,110040.0,4.26388847]
[1748370717913,0.002,110050.0,110040.0,3.98866047]
[1748370718746,0.002,110050.0,110040.0,4.32661647]
[1748370719167,0.002,110050.0,110040.0,4.16029847]
[1748370719810,0.002,110050.0,110040.0,5.57027847]
[1748370720517,0.002,110050.0,110040.0,5.54464547]
[1748370720724,0.002,110050.0,110040.0,5.59654847]
[1748370720961,0.002,110050.0,110040.0,5.59303847]
[1748370721375,0.002,110050.0,110040.0,5.59303647]
[1748370722020,0.002,110050.0,110040.0,5.59303847]
[1748370723085,0.002,110050.0,110040.0,5.45969347]
[1748370723535,0.002,110050.0,110040.0,5.02719147]
[1748370723957,0.002,110050.0,110040.0,5.02499347]
[1748370724168,0.0176,110050.0,110040.0,4.80801747]
[1748370724836,0.0176,110050.0,110040.0,3.83466847]
[1748370725056,0.0327,110050.0,110040.0,3.77251247]
[1748370726142,0.0327,110050.0,110040.0,3.93155347]
[1748370726348,0.0327,110050.0,110040.0,3.96115147]
[1748370726561,0.0327,110050.0,110040.0,3.96115347]
[1748370726774,0.0327,110050.0,110040.0,3.97235347]
[1748370726978,0.0327,110050.0,110040.0,3.84134847]
[1748370727183,0.0327,110050.0,110040.0,3.91216047]
[1748370727632,0.0327,110050.0,110040.0,3.91958047]
[1748370727861,0.0327,110050.0,110040.0,3.91958447]
[1748370728092,0.0327,110050.0,110040.0,3.93855947]
[1748370728323,0.0327,110050.0,110040.0,3.94762947]
[1748370728532,0.0327,110050.0,110040.0,4.39753647]
[1748370728960,0.0327,110050.0,110040.0,4.20711247]
[1748370729178,0.0327,110050.0,110040.0,2.54820647]
[1748370729394,0.0327,110050.0,110040.0,2.83860647]
[1748370729851,0.0327,110050.0,110040.0,2.53930647]
[1748370732270,0.0176,110050.0,110040.0,2.53930647]
[1748370732556,0.002,110050.0,110040.0,2.53930647]
[1748370733224,0.0175,110070.0,110060.0,0.20897592]
[1748370733452,0.002,110070.0,110060.0,3.73168549]
[1748370733670,0.0307,110080.0,110070.0,0.20895692]
[1748370733895,0.0307,110080.0,110070.0,1.69893154]
[1748370734111,0.0307,110080.0,110070.0,2.71036654]
[1748370734323,0.0307,110080.0,110070.0,2.80142049]
[1748370734962,0.0307,110080.0,110070.0,2.80342049]
[1748370735179,0.03119298,110080.0,110070.0,2.81449062]
[1748370737458,0.00049298,110080.0,110070.0,3.11379062]
[1748370738571,0.00049298,110080.0,110070.0,3.45379062]
[1748370739049,0.01609298,110080.0,110070.0,3.45379062]
[1748370739698,0.01609298,110080.0,110070.0,2.85398331]
[1748370742293,0.00049298,110080.0,110070.0,3.45379062]
[1748370743133,0.01589298,110080.0,110070.0,3.45379062]
[1748370743790,0.01589298,110080.0,110070.0,3.47195462]
[1748370744016,0.01589298,110080.0,110070.0,3.18159462]
[1748370744244,0.03099298,110080.0,110070.0,1.71873331]
[1748370744457,0.04007653,110080.0,110070.0,1.27105231]
[1748370744674,0.05824413,110080.0,110070.0,1.27105231]
[1748370744886,0.05824413,110080.0,110070.0,1.25288831]
[1748370744887,0.06732793,110080.0,110070.0,1.25288831]
[1748370745099,0.04007653,110080.0,110070.0,1.25288831]
[1748370745310,0.04916025,110080.0,110070.0,1.25288831]
[1748370745524,0.04007653,110080.0,110070.0,1.25288831]
[1748370745732,0.04916025,110080.0,110070.0,1.25288831]
[1748370745937,0.05824413,110080.0,110070.0,1.25288831]
[1748370746147,0.04916025,110080.0,110070.0,1.25288831]
[1748370747956,0.04916025,110080.0,110070.0,1.24381818]
[1748370748812,0.04916017,110080.0,110070.0,1.24381818]
[1748370749026,0.2490139,110080.0,110070.0,0.43505395]
[1748370749251,0.23084712,110080.0,110070.0,0.52570255]
[1748370749463,0.23084712,110080.0,110070.0,0.53478767]
[1748370749726,0.23084712,110080.0,110070.0,0.54387271]
[1748370749935,0.23084712,110080.0,110070.0,0.01308512]
[1748370750168,0.23084712,110080.0,110070.0,0.19478767]
[1748370750380,0.23084712,110080.0,110070.0,0.20387271]
[1748370750592,0.23084712,110080.0,110070.0,0.21295759]
[1748370751015,0.23084712,110080.0,110070.0,0.20387271]
[1748370751233,0.23084712,110080.0,110070.0,0.21295767]
[1748370754314,0.23084712,110080.0,110070.0,0.19478767]
[1748370754513,0.22176315,110080.0,110070.0,0.18570255]
[1748370754716,0.22176315,110080.0,110070.0,0.19478759]
[1748370755023,0.22176315,110080.0,110070.0,0.004]
[1748370756058,0.22176315,110080.0,110070.0,0.002]
[1748370756491,0.22176315,110080.0,110070.0,0.79259482]
[1748370756694,0.22176315,110080.0,110070.0,0.8016797]
[1748370756896,0.22176315,110080.0,110070.0,0.79259498]
[1748370757101,0.22176315,110080.0,110070.0,0.80168002]
[1748370757863,0.21267902,110080.0,110060.0,0.80878074]
[1748370758233,0.0309,110070.0,110060.0,0.80878074]
[1748370759101,0.04906901,110070.0,110060.0,0.80878074]
[1748370759302,0.04906901,110070.0,110060.0,0.81078074]
[1748370759504,0.03998446,110070.0,110060.0,0.81078074]
[1748370759643,0.0309,110070.0,110060.0,0.81078074]
[1748370759844,0.0309,110070.0,110060.0,0.81278074]
[1748370760067,0.0309,110070.0,110060.0,0.92850397]
[1748370760291,0.0309,110070.0,110060.0,1.24183469]
[1748370760494,0.0309,110070.0,110060.0,1.23983469]
[1748370760665,0.0309,110070.0,110060.0,1.24183469]
[1748370760866,0.0156,110070.0,110060.0,1.24383469]
[1748370762368,0.01579298,110080.0,110060.0,0.89474915]
[1748370762578,0.03099298,110080.0,110070.0,0.90208898]
[1748370762791,0.04007653,110080.0,110070.0,0.89981818]
[1748370762990,0.03099298,110080.0,110070.0,0.89981818]
[1748370764324,0.04007662,110080.0,110070.0,0.90081818]
[1748370764778,0.05824431,110080.0,110070.0,0.90081818]
[1748370766026,0.04916034,110080.0,110070.0,0.90081818]
[1748370766273,0.06732819,110080.0,110070.0,0.90081818]
[1748370767501,0.07641232,110080.0,110070.0,0.90081818]
[1748370767792,0.06732819,110080.0,110070.0,0.90081818]
[1748370768920,0.07641224,110080.0,110070.0,0.90081818]
[1748370769606,0.06732819,110080.0,110070.0,0.90081818]
[1748370770262,0.04007662,110080.0,110070.0,1.24081818]
[1748370771129,0.04916042,110080.0,110070.0,1.24081818]
[1748370771343,0.04916042,110080.0,110070.0,1.53101818]
[1748370771344,0.03099298,110080.0,110070.0,1.53101818]
[1748370771571,0.01569298,110080.0,110070.0,1.53101818]
[1748370771805,0.02477653,110080.0,110070.0,1.53101818]
[1748370772026,0.04896025,110080.0,110070.0,1.53101818]
[1748370772462,0.04896025,110080.0,110070.0,1.24081818]
[1748370772679,0.83045434,110080.0,110070.0,0.001]
[1748370773137,0.23064703,110080.0,110070.0,0.001]
[1748370773590,0.83045434,110080.0,110070.0,0.001]
[1748370773812,0.92150829,110080.0,110070.0,0.001]
[1748370774029,1.02710309,110080.0,110070.0,0.001]
[1748370774240,0.93604914,110080.0,110070.0,0.001]
[1748370777133,1.02828914,110080.0,110070.0,0.001]
[1748370777765,0.42848183,110080.0,110070.0,0.001]
[1748370777976,1.02828914,110080.0,110070.0,0.001]
[1748370780600,0.71864183,110080.0,110070.0,0.001]
[1748370780812,0.41398098,110080.0,110070.0,0.001]
[1748370781014,0.32292703,110080.0,110070.0,0.001]
[1748370782978,0.92273434,110080.0,110070.0,0.001]
[1748370783236,1.08703002,110080.0,110070.0,0.001]
[1748370783849,1.01378829,110080.0,110070.0,0.001]
[1748370784277,0.06744577,110050.0,110040.0,1.15990515]
[1748370784541,0.06744577,110050.0,110040.0,1.16899217]
[1748370784745,0.06744577,110050.0,110040.0,1.26004612]
[1748370784968,0.06744577,110050.0,110040.0,1.49004612]
[1748370785169,0.05835908,110050.0,110040.0,1.49004612]
[1748370785375,0.02498611,110050.0,110040.0,1.49004612]
[1748370785582,0.23099055,110060.0,110050.0,0.20899515]
[1748370785799,0.04927149,110060.0,110050.0,0.81788882]
[1748370786013,0.23099055,110060.0,110050.0,0.8178889]
[1748370786222,0.01817247,110050.0,110040.0,1.23578415]
[1748370786437,0.058759,110050.0,110040.0,1.23278415]
[1748370786653,0.24958126,110050.0,110040.0,1.23278465]
[1748370786901,0.23140879,110050.0,110040.0,0.09305395]
[1748370787108,0.23140879,110050.0,110040.0,0.28689356]
[1748370787309,0.23140879,110050.0,110040.0,0.09605395]
[1748370787512,0.22232226,110050.0,110040.0,0.09605395]
[1748370787867,0.22032226,110050.0,110040.0,0.09605395]
[1748370788068,0.22032226,110050.0,110040.0,0.27780604]
[1748370788467,0.22032226,110050.0,110040.0,0.28080604]
[1748370789303,0.22032226,110050.0,110040.0,0.008]
[1748370789685,0.22032226,110050.0,110040.0,0.19883969]
[1748370789894,0.22032226,110050.0,110040.0,0.008]
[1748370790793,0.22032226,110050.0,110040.0,0.005]
[1748370791033,0.22032226,110050.0,110040.0,0.003]
[1748370791361,0.22032226,110050.0,110040.0,0.005]
[1748370791700,0.22032226,110050.0,110040.0,0.004]
[1748370791909,0.22132226,110050.0,110040.0,0.002]
[1748370792343,0.22132226,110050.0,110040.0,0.003]
[1748370805279,0.19085858,110030.0,110020.0,0.34]
[1748370805489,0.02726395,110030.0,110020.0,0.53993689]
[1748370805692,0.22413255,110030.0,110020.0,1.10228019]
[1748370806160,0.23322073,110030.0,110020.0,1.09319177]
[1748370806363,0.23074512,110030.0,110020.0,0.53087429]
[1748370806538,0.23074512,110030.0,110020.0,0.54001281]
[1748370806747,0.23074512,110030.0,110020.0,0.54910181]
[1748370806971,0.23074512,110030.0,110020.0,0.55210181]
[1748370807364,0.23074512,110030.0,110020.0,0.55510181]
[1748370808320,0.23074512,110030.0,110020.0,0.54601281]
[1748370808531,0.23074512,110030.0,110020.0,0.55510181]
[1748370809153,0.23074512,110030.0,110020.0,0.55210181]
[1748370809364,0.03327652,110030.0,110020.0,1.13262279]
[1748370809571,0.02726437,110030.0,110020.0,1.13262229]
[1748370809992,0.20903297,110030.0,110020.0,1.40019584]
[1748370810205,0.21812131,110030.0,110020.0,1.17019584]
[1748370810417,0.02726437,110030.0,110020.0,1.16719584]
[1748370810634,0.01817611,110030.0,110020.0,1.16719584]
[1748370810856,0.03437495,110040.0,110020.0,1.17262866]
[1748370811074,0.22453321,110030.0,110020.0,0.1909238]
[1748370811281,0.2154452,110030.0,110020.0,0.59996628]
[1748370811523,0.2313452,110030.0,110020.0,4.943e-05]
[1748370816266,0.2313452,110030.0,110020.0,0.1909238]
[1748370816481,0.2313452,110030.0,110020.0,0.79084065]
[1748370816885,0.22225694,110030.0,110020.0,0.79084065]
[1748370817089,0.22225694,110030.0,110020.0,0.81810758]
[1748370817090,0.21584504,110030.0,110020.0,0.81810758]
[1748370817291,0.21584504,110030.0,110020.0,0.82719641]
[1748370817292,0.20903347,110030.0,110020.0,0.82719641]
[1748370817482,0.20903347,110030.0,110020.0,0.81810774]
[1748370817886,0.20903347,110030.0,110020.0,0.82719658]
[1748370818088,0.20903347,110030.0,110020.0,0.82719609]
[1748370818332,0.20903347,110030.0,110020.0,0.81810733]
[1748370818544,0.20903347,110030.0,110020.0,0.80901849]
[1748370819120,0.19994504,110030.0,110020.0,0.80901849]
[1748370819520,0.19994504,110030.0,110020.0,0.79992957]
[1748370819886,0.21604504,110030.0,110020.0,0.79084057]
[1748370820628,0.23104504,110030.0,110020.0,0.79084057]
[1748370820957,0.21604504,110030.0,110020.0,0.79992957]
[1748370821166,0.21604504,110030.0,110020.0,0.80901849]
[1748370821722,0.22513347,110030.0,110020.0,0.81810725]
[1748370822142,0.00908785,110030.0,110020.0,0.83420716]
[1748370822393,0.23062704,110040.0,110030.0,0.19994504]
[1748370822597,0.01817603,110030.0,110020.0,0.21611181]
[1748370822856,0.01817603,110030.0,110020.0,0.81602866]
[1748370822857,0.00908785,110030.0,110020.0,0.81602866]
[1748370823063,0.01817595,110030.0,110020.0,0.81602866]
[1748370823473,0.02726421,110030.0,110020.0,0.90708261]
[1748370823682,0.01817595,110030.0,110020.0,0.90708261]
[1748370823914,0.02726421,110030.0,110020.0,0.90708261]
[1748370825372,0.02726421,110030.0,110020.0,0.89098261]
[1748370826040,0.23174496,110030.0,110020.0,4.943e-05]
[1748370826170,0.52166496,110030.0,110020.0,4.943e-05]
[1748370826351,0.54654535,110030.0,110020.0,4.943e-05]
[1748370827170,0.52166496,110030.0,110020.0,4.943e-05]
[1748370827586,0.61382496,110030.0,110020.0,4.943e-05]
[1748370827804,0.70487891,110030.0,110020.0,4.943e-05]
[1748370830884,0.70687891,110030.0,110020.0,4.943e-05]
[1748370831315,0.70887891,110030.0,110020.0,4.943e-05]
[1748370831964,1.39984971,110030.0,110020.0,4.943e-05]
[1748370833419,1.30879576,110030.0,110020.0,4.943e-05]
[1748370834180,0.70887891,110030.0,110020.0,4.943e-05]
[1748370834398,0.72341976,110030.0,110020.0,4.943e-05]
[1748370834612,1.32333661,110030.0,110020.0,4.943e-05]
[1748370835735,1.66333661,110030.0,110020.0,4.943e-05]
[1748370836426,1.75439056,110030.0,110020.0,4.943e-05]
[1748370838564,1.37231056,110030.0,110020.0,4.943e-05]
[1748370838781,1.66321661,110030.0,110020.0,4.943e-05]
[1748370841929,1.06329976,110030.0,110020.0,4.943e-05]
[1748370842157,1.04875891,110030.0,110020.0,4.943e-05]
[1748370844082,1.64867576,110030.0,110020.0,4.943e-05]
[1748370844288,1.73972971,110030.0,110020.0,4.943e-05]
[1748370844695,1.75427056,110030.0,110020.0,4.943e-05]
[1748370844901,1.15435371,110030.0,110020.0,4.943e-05]
[1748370845109,1.66321661,110030.0,110020.0,4.943e-05]
[1748370845747,0.19999908,110000.0,109990.0,0.91204096]
[1748370845957,0.01818057,110000.0,109990.0,0.91218927]
[1748370846215,0.22727088,110000.0,109990.0,0.92128042]
[1748370846438,0.22727088,110000.0,109990.0,1.01233437]
[1748370846679,0.20909031,110000.0,109990.0,0.98506067]
[1748370846883,0.20909031,110000.0,109990.0,0.32721947]
[1748370847112,0.20909031,110000.0,109990.0,0.92713632]
[1748370847327,0.20909031,110000.0,109990.0,0.91804484]
[1748370847555,0.19999974,110000.0,109990.0,0.21966568]
[1748370848062,0.19999974,110000.0,109990.0,0.21966577]
[1748370849154,0.01818106,110000.0,109990.0,0.85426525]
[1748370849392,0.19999965,110000.0,109990.0,0.83608262]
[1748370850253,0.19090908,110000.0,109990.0,0.83608262]
[1748370851323,0.19090908,110000.0,109990.0,0.00314831]
[1748370855845,0.19090908,110000.0,109990.0,0.18498302]
[1748370856052,0.19090908,110000.0,109990.0,0.19407475]
[1748370856266,0.19090908,110000.0,109990.0,0.20316632]
[1748370856487,0.20909007,110000.0,109990.0,0.83656588]
[1748370856707,0.21818097,110000.0,109990.0,0.85176588]
[1748370856929,0.20908999,110000.0,109990.0,0.85176588]
[1748370858006,0.20908999,110000.0,109990.0,0.82747465]
[1748370858231,0.19999958,110000.0,109990.0,0.2184664]
[1748370858439,0.19999958,110000.0,109990.0,0.22755788]
[1748370858855,0.19999958,110000.0,109990.0,0.21225788]
[1748370860878,0.19999958,110000.0,109990.0,0.2031664]
[1748370861097,0.19999958,110000.0,109990.0,0.00314831]
[1748370861312,0.19090892,110000.0,109990.0,0.00314831]
[1748370861555,0.19090892,110000.0,109990.0,0.01224004]
[1748370861792,0.18181818,110000.0,109990.0,0.01224004]
[1748370862046,0.18181818,110000.0,109990.0,0.00314831]
[1748370867336,0.19791818,110000.0,109990.0,0.00314831]
[1748370867567,0.21142716,110000.0,109990.0,0.00314831]
[1748370871665,0.19532716,110000.0,109990.0,0.00314831]
[1748370872959,0.19532716,110000.0,109990.0,0.18498302]
[1748370873168,0.2044179,110000.0,109990.0,0.20977467]
[1748370873631,0.2044179,110000.0,109990.0,0.2188664]
[1748370873840,0.2044179,110000.0,109990.0,0.19407475]
[1748370874053,0.2044179,110000.0,109990.0,0.20316632]
[1748370874291,0.2044179,110000.0,109990.0,0.2122578]
[1748370874492,0.2044179,110000.0,109990.0,0.19407475]
[1748370874701,0.2044179,110000.0,109990.0,0.20316632]
[1748370874933,0.22259921,110000.0,109990.0,0.23734895]
[1748370875140,0.22259921,110000.0,109990.0,0.22825772]
[1748370875350,0.22259921,110000.0,109990.0,0.21916632]
[1748370875564,0.21350872,110000.0,109990.0,0.20316632]
[1748370875973,0.21350872,110000.0,109990.0,0.2122578]
[1748370876199,0.21350872,110000.0,109990.0,0.2213492]
[1748370876618,0.21350872,110000.0,109990.0,0.23044052]
[1748370876828,0.21350872,110000.0,109990.0,0.2122578]
[1748370877052,0.01817966,110010.0,110000.0,0.21559925]
[1748370877260,0.21816089,110010.0,110000.0,0.81551643]
[1748370877475,0.03635924,110010.0,110000.0,0.81551643]
[1748370877684,0.02726916,110010.0,110000.0,0.83369717]
[1748370879306,0.21816081,110010.0,110000.0,1.12337717]
[1748370879522,0.02726916,110010.0,110000.0,1.12337717]
[1748370879733,0.02726908,110010.0,110000.0,1.12337717]
[1748370880320,0.03635899,110010.0,110000.0,1.12337717]
[1748370880533,0.01817925,110010.0,110000.0,1.12337717]
[1748370880961,0.01817925,110010.0,110000.0,1.13235627]
[1748370881162,0.02726916,110010.0,110000.0,1.13235627]
[1748370881397,0.01817925,110010.0,110000.0,1.13235627]
[1748370881813,0.02726916,110010.0,110000.0,1.13235627]
[1748370882044,0.04103637,110010.0,110000.0,1.11675627]
[1748370882929,0.015,110020.0,110010.0,0.2090709]
[1748370883147,0.015,110020.0,110010.0,0.80898708]
[1748370883148,0.01817718,110020.0,110010.0,0.80898708]
[1748370883355,0.03635511,110020.0,110010.0,0.82518708]
[1748370883559,0.02726602,110020.0,110010.0,0.82518708]
[1748370883770,0.01817718,110020.0,110010.0,0.82518708]
[1748370884003,0.00908851,110020.0,110010.0,0.82518708]
[1748370884213,0.56693263,110030.0,110020.0,0.20905188]
[1748370884425,0.39425237,110030.0,110020.0,0.20905188]
[1748370884632,0.03607577,110030.0,110020.0,0.21814072]
[1748370884841,0.21103322,110030.0,110020.0,0.19087429]
[1748370885046,0.21103322,110030.0,110020.0,0.19996329]
[1748370885485,0.21103322,110030.0,110020.0,0.19087429]
[1748370885694,0.23163874,110030.0,110020.0,0.19087429]
[1748370885921,0.24095056,110030.0,110020.0,0.19087429]
[1748370886134,0.24295056,110030.0,110020.0,0.18178512]
[1748370886350,0.0272666,110020.0,110010.0,0.20907056]
[1748370887434,0.03635544,110020.0,110010.0,0.20907056]